Workbook

Sheet Mittelhilfstabelle
A2: Stunde | B2: Wind | C2: Luftfeuchtigkeit | D2: Luftdruck | E2: Taupunkttemperatur | F2: Bewölkung | H2: Stunde | I2: Wind | J2: Luftfeuchtigkeit | K2: Luftdruck | L2: Taupunkttemperatur | M2: Bewölkung
A3: 00 | B3: 1 | C3: 86 | D3: 1028.1 | E3: 1.5 | F3: 0 | H3: 00 | I3: 1 | J3: 90 | K3: 1022.3 | L3: 1.2 | M3: 2
A4: 01 | B4: 1 | C4: 87 | D4: 1028.4 | E4: 1.5 | F4: 0 | H4: 01 | I4: 1 | J4: 90 | K4: 1021.8 | L4: 1.7 | M4: 1
A5: 02 | B5: 1 | C5: 89 | D5: 1028.4 | E5: 1.1 | F5: 0 | H5: 02 | I5: 1 | J5: 89 | K5: 1021.4 | L5: 1.5 | M5: 3
A6: 03 | B6: 1 | C6: 88 | D6: 1028.3 | E6: 0.7 | F6: 0 | H6: 03 | I6: 1 | J6: 89 | K6: 1021.1 | L6: 1.5 | M6: 3
A7: 04 | B7: 1 | C7: 90 | D7: 1028 | E7: 0.1 | F7: 0 | H7: 04 | I7: 1 | J7: 89 | K7: 1021.2 | L7: 1.8 | M7: 3
A8: 05 | B8: 0 | C8: 91 | D8: 1028.2 | E8: -0.1 | F8: 0 | H8: 05 | I8: 1 | J8: 89 | K8: 1020.7 | L8: 1.6 | M8: 4
A9: 06 | B9: 0 | C9: 92 | D9: 1028 | E9: -0.3 | F9: 1 | H9: 06 | I9: 1 | J9: 89 | K9: 1020.5 | L9: 1.3 | M9: 4
A10: 07 | B10: 0 | C10: 94 | D10: 1028.2 | E10: -0.1 | F10: 1 | H10: 07 | I10: 1 | J10: 90 | K10: 1020.6 | L10: 1.8 | M10: 6
A11: 08 | B11: 0 | C11: 94 | D11: 1028.7 | E11: 0 | F11: 5 | H11: 08 | I11: 1 | J11: 89 | K11: 1020.6 | L11: 2.5 | M11: 7
A12: 09 | B12: 1 | C12: 95 | D12: 1028.7 | E12: 0.6 | F12: 2 | H12: 09
A13: 10 | B13: 1 | C13: 96 | D13: 1028.6 | E13: 3 | F13: 2 | H13: 10
A14: 11 | B14: 2 | C14: 65 | D14: 1028 | E14: 4.6 | F14: 1 | H14: 11
A15: 12 | B15: 3 | C15: 54 | D15: 1027.4 | E15: 2.8 | F15: 2 | H15: 12
A16: 13 | B16: 2 | C16: 54 | D16: 1026.6 | E16: 3.3 | F16: 2 | H16: 13
A17: 14 | B17: 2 | C17: 55 | D17: 1025.8 | E17: 3.3 | F17: 2 | H17: 14
A18: 15 | B18: 2 | C18: 58 | D18: 1025.2 | E18: 3.2 | F18: 2 | H18: 15
A19: 16 | B19: 2 | C19: 63 | D19: 1024.7 | E19: 2.7 | F19: 3 | H19: 16
A20: 17 | B20: 1 | C20: 69 | D20: 1024.6 | E20: 2.2 | F20: 3 | H20: 17
A21: 18 | B21: 2 | C21: 76 | D21: 1024.5 | E21: 1.9 | F21: 2 | H21: 18
A22: 19 | B22: 1 | C22: 82 | D22: 1024 | E22: 1.7 | F22: 0 | H22: 19
A23: 20 | B23: 1 | C23: 85 | D23: 1023.7 | E23: 1.7 | F23: 0 | H23: 20
A24: 21 | B24: 1 | C24: 86 | D24: 1023.1 | E24: 1 | F24: 0 | H24: 21
A25: 22 | B25: 1 | C25: 87 | D25: 1023 | E25: 1.1 | F25: 0 | H25: 22
A26: 23 | B26: 1 | C26: 91 | D26: 1022.8 | E26: 1.6 | F26: 2 | H26: 23
A27: Mittel | B27: =ROUND(AVERAGE(B3:B26),1) -> 1.2 | C27: =ROUND(AVERAGE(C3:C26),1) -> 80.3 | D27: =ROUND(AVERAGE(D3:D26),1) -> 1026.5 | E27: =AVERAGE(E3:E26) -> 1.629166667 | F27: =ROUND(AVERAGE(F3:F26),1) -> 1.3 | H27: Mittel | I27: =ROUND(AVERAGE(I3:I26),1) -> 1 | J27: =ROUND(AVERAGE(J3:J26),1) -> 89.3 | K27: =ROUND(AVERAGE(K3:K26),1) -> 1021.1 | L27: =AVERAGE(L3:L26) -> 1.655555556 | M27: =ROUND(AVERAGE(M3:M26),1) -> 3.7
E29: 2013-10-31 | L29: 2013-11-01
A32: Stunde | B32: Wind | C32: Luftfeuchtigkeit | D32: Luftdruck | E32: Taupunkttemperatur | F32: Bewölkung | H32: Stunde | I32: Wind | J32: Luftfeuchtigkeit | K32: Luftdruck | L32: Taupunkttemperatur | M32: Bewölkung
A33: 00 | B33: 3 | C33: 56 | D33: 1007.8 | E33: 7.4 | F33: 7 | H33: 00 | I33: 2 | J33: 69 | K33: 1017.5 | L33: 4.6 | M33: 5
A34: 01 | B34: 3 | C34: 59 | D34: 1008.3 | E34: 7.7 | F34: 8 | H34: 01 | I34: 2 | J34: 69 | K34: 1017.8 | L34: 4.5 | M34: 6
A35: 02 | B35: 2 | C35: 61 | D35: 1008.2 | E35: 7.7 | F35: 7 | H35: 02 | I35: 2 | J35: 69 | K35: 1018.1 | L35: 4.7 | M35: 6
A36: 03 | B36: 2 | C36: 64 | D36: 1008.9 | E36: 7.8 | F36: 5 | H36: 03 | I36: 2 | J36: 73 | K36: 1018.2 | L36: 4.7 | M36: 7
A37: 04 | B37: 2 | C37: 65 | D37: 1009.2 | E37: 7.6 | F37: 4 | H37: 04 | I37: 2 | J37: 74 | K37: 1018.5 | L37: 4.6 | M37: 7
A38: 05 | B38: 2 | C38: 67 | D38: 1009.6 | E38: 7.4 | F38: 6 | H38: 05 | I38: 2 | J38: 76 | K38: 1018.9 | L38: 4.5 | M38: 8
A39: 06 | B39: 2 | C39: 67 | D39: 1010.2 | E39: 7.2 | F39: 6 | H39: 06 | I39: 2 | J39: 74 | K39: 1019.1 | L39: 4.7 | M39: 8
A40: 07 | B40: 2 | C40: 67 | D40: 1010.5 | E40: 7.1 | F40: 7 | H40: 07 | I40: 2 | J40: 77 | K40: 1019.8 | L40: 4.7 | M40: 6
A41: 08 | B41: 1 | C41: 66 | D41: 1011.1 | E41: 6.9 | F41: 8 | H41: 08 | I41: 2 | J41: 78 | K41: 1020.6 | L41: 4.8 | M41: 6
A42: 09 | B42: 1 | C42: 67 | D42: 1012 | E42: 7.2 | F42: 7 | H42: 09 | I42: 2 | J42: 78 | K42: 1021.4 | L42: 4.9 | M42: 6
A43: 10 | B43: 3 | C43: 61 | D43: 1012.6 | E43: 6.6 | F43: 8 | H43: 10 | I43: 2 | J43: 70 | K43: 1022.1 | L43: 5.6 | M43: 4
A44: 11 | B44: 3 | C44: 59 | D44: 1012.8 | E44: 6.6 | F44: 7 | H44: 11 | I44: 2 | J44: 66 | K44: 1022.7 | L44: 5.1 | M44: 5
A45: 12 | B45: 3 | C45: 54 | D45: 1012.7 | E45: 5.8 | F45: 7 | H45: 12 | I45: 2 | J45: 64 | K45: 1022.7 | L45: 5.5 | M45: 6
A46: 13 | B46: 2 | C46: 56 | D46: 1012.5 | E46: 6.9 | F46: 7 | H46: 13 | I46: 2 | J46: 63 | K46: 1022.9 | L46: 4 | M46: 5
A47: 14 | B47: 3 | C47: 45 | D47: 1012.4 | E47: 4.5 | F47: 6 | H47: 14 | I47: 2 | J47: 59 | K47: 1023 | L47: 3.8 | M47: 4
A48: 15 | B48: 3 | C48: 47 | D48: 1013.1 | E48: 4.3 | F48: 6 | H48: 15 | I48: 1 | J48: 63 | K48: 1023.4 | L48: 4.6 | M48: 2
A49: 16 | B49: 2 | C49: 51 | D49: 1013.9 | E49: 4.1 | F49: 4 | H49: 16 | I49: 2 | J49: 57 | K49: 1023.6 | L49: 3.3 | M49: 2
A50: 17 | B50: 1 | C50: 55 | D50: 1014.4 | E50: 3.8 | F50: 2 | H50: 17 | I50: 1 | J50: 66 | K50: 1024.2 | L50: 3.3 | M50: 1
A51: 18 | B51: 1 | C51: 61 | D51: 1015.3 | E51: 3.9 | F51: 2 | H51: 18 | I51: 2 | J51: 70 | K51: 1025 | L51: 3.1 | M51: 1
A52: 19 | B52: 2 | C52: 61 | D52: 1016 | E52: 3.8 | F52: 1 | H52: 19 | I52: 2 | J52: 75 | K52: 1025.7 | L52: 3.1 | M52: 1
A53: 20 | B53: 2 | C53: 69 | D53: 1016.3 | E53: 3.8 | F53: 0 | H53: 20 | I53: 2 | J53: 79 | K53: 1026.4 | L53: 2.6 | M53: 0
A54: 21 | B54: 2 | C54: 69 | D54: 1016.9 | E54: 3.9 | F54: 0 | H54: 21 | I54: 2 | J54: 76 | K54: 1027 | L54: 2.4 | M54: 0
A55: 22 | B55: 2 | C55: 67 | D55: 1017 | E55: 4.1 | F55: 5 | H55: 22 | I55: 1 | J55: 81 | K55: 1027.4 | L55: 2 | M55: 0
A56: 23 | B56: 3 | C56: 67 | D56: 1017.3 | E56: 4.7 | F56: 7 | H56: 23 | I56: 1 | J56: 84 | K56: 1027.8 | L56: 2 | M56: 0
A57: Mittel | B57: =ROUND(AVERAGE(B33:B56),1) -> 2.2 | C57: =ROUND(AVERAGE(C33:C56),1) -> 60.9 | D57: =ROUND(AVERAGE(D33:D56),1) -> 1012.5 | E57: =AVERAGE(E33:E56) -> 5.866666667 | F57: =ROUND(AVERAGE(F33:F56),1) -> 5.3 | H57: Mittel | I57: =ROUND(AVERAGE(I33:I56),1) -> 1.8 | J57: =ROUND(AVERAGE(J33:J56),1) -> 71.3 | K57: =ROUND(AVERAGE(K33:K56),1) -> 1022.2 | L57: =AVERAGE(L33:L56) -> 4.045833333 | M57: =ROUND(AVERAGE(M33:M56),1) -> 4
E59: 2013-10-29 | L59: 2013-10-30

Sheet Kurztabelle
A2: Wetterwarte: Köttewitz | L2: Monat: | M2: Oktober | Y2: Jahr: | Z2: 2013
A4: Dat. | B4: TTT | C4: TxTx | D4: TnTn | E4: Tg | F4: Umin. | G4: UU | H4: NN | I4: RRRR | J4: Art | L4: sss | M4: PPPP | N4: eee | O4: fff | R4: Tage mit | V4: fk | W4: Summe
J5: * | O5: Bft | P5: SS | Q5: Art ( D ) | R5: RR | S5: Ge | T5: Bf6 | U5: Bf8 | V5: Bft | W5: Gewitter
A6: 01. | B6: 5.2 | C6: 13.8 | D6: -0.2 | E6: -1.1 | F6: 56 | G6: 83 | H6: 1.8 | I6: . | L6: 2.8 | M6: 1016.7 | N6: 2.8 | O6: 1 | V6: 4 | AA6: max >=30,0°C | AB6: max >=25,0°C | AC6: max <0,0°C | AE6: RR >=0,1 mm | AF6: RR >=1,0 mm | AG6: RR >=3,0 mm | AH6: RR >=10,0 mm
A7: 02. | B7: 5.4 | C7: 13.6 | D7: 0.1 | E7: -0.6 | F7: 48 | G7: 78 | H7: 1 | I7: . | L7: 3.8 | M7: 1025 | N7: 1.7 | O7: 1 | V7: 4 | AA7: =COUNTIF(C6:C15,">=30") -> 0 | AB7: =COUNTIF(C6:C15,">=25") -> 0 | AC7: =COUNTIF(C6:C15,"<0") -> 0 | AE7: =COUNTIF(I6:I15,">=0,1") -> 4 | AF7: =COUNTIF(I6:I15,">=1") -> 1 | AG7: =COUNTIF(I6:I15,">=3") -> 1 | AH7: =COUNTIF(I6:I15,">=10") -> 1
A8: 03. | B8: 5.9 | C8: 11.9 | D8: 0.2 | E8: -1.7 | F8: 45 | G8: 72 | H8: 0.3 | I8: . | L8: 4.9 | M8: 1028.2 | N8: 0.6 | O8: 1 | V8: 3 | AA8: =COUNTIF(C18:C27,">=30") -> 0 | AB8: =COUNTIF(C18:C27,">=25") -> 0 | AC8: =COUNTIF(C18:C27,"<0") -> 0 | AE8: =COUNTIF(I18:I27,">=0,1") -> 8 | AF8: =COUNTIF(I18:I27,">=1") -> 6 | AG8: =COUNTIF(I18:I27,">=3") -> 3 | AH8: =COUNTIF(I18:I27,">=10") -> 1
A9: 04. | B9: 8.2 | C9: 13.6 | D9: 4.1 | E9: 2.2 | F9: 46 | G9: 60 | H9: 4 | I9: . | L9: 4.3 | M9: 1024.3 | N9: 0.7 | O9: 1 | V9: 3 | AA9: =COUNTIF(C30:C39,">=30") -> 0 | AB9: =COUNTIF(C30:C39,">=25") -> 0 | AC9: =COUNTIF(C30:C39,"<0") -> 0 | AE9: =COUNTIF(I30:I39,">=0,1") -> 3 | AF9: =COUNTIF(I30:I39,">=1") -> 1 | AG9: =COUNTIF(I30:I39,">=3") -> 0 | AH9: =COUNTIF(I30:I39,">=10") -> 0
A10: 05. | B10: 8.6 | C10: 13.8 | D10: 5.4 | E10: 3.3 | F10: 50 | G10: 67 | H10: 5.3 | I10: . | L10: 1.6 | M10: 1019 | N10: 2.8 | O10: 0 | V10: 3
A11: 06. | B11: 9.4 | C11: 12 | D11: 5.8 | E11: 5 | F11: 82 | G11: 89 | H11: 6.7 | I11: 0.4 | J11: R | L11: . | M11: 1023.9 | N11: 7.5 | O11: 0 | R11: 1 | V11: 1 | AA11: min <0,0°C | AB11: min <0-10,0°C | AE11: rel.Lf. 14h >=70% | AG11: rel.Lf. 14h <=40%
A12: 07. | B12: 12.2 | C12: 15.7 | D12: 10.2 | E12: 10 | F12: 77 | G12: 92 | H12: 8 | I12: 0.1 | J12: R | L12: . | M12: 1027.5 | N12: 10.8 | O12: 0 | R12: 1 | V12: 2 | AA12: =COUNTIF(D6:D15,"<0") -> 1 | AB12: =COUNTIF(D6:D15,"<=-10") -> 0 | AE12: =COUNTIF(F6:F15,">=70") -> 4 | AG12: =COUNTIF(F6:F15,"<=40") -> 0
A13: 08. | B13: 12.6 | C13: 18.1 | D13: 8.5 | E13: 7.8 | F13: 52 | G13: 80 | H13: 4.3 | I13: . | L13: 3.6 | M13: 1024.7 | N13: 8.9 | O13: 1 | V13: 3 | AA13: =COUNTIF(D18:D27,"<0") -> 0 | AB13: =COUNTIF(D18:D27,"<=-10") -> 0 | AE13: =COUNTIF(F18:F27,">=70") -> 7 | AG13: =COUNTIF(F18:F27,"<=40") -> 0
A14: 09. | B14: 11.6 | C14: 15.1 | D14: 8.3 | E14: 7.2 | F14: 70 | G14: 84 | H14: 7.6 | I14: 0.7 | J14: R | L14: . | M14: 1018 | N14: 8.9 | O14: 0 | R14: 1 | V14: 3 | AA14: =COUNTIF(D30:D39,"<0") -> 0 | AB14: =COUNTIF(D30:D39,"<=-10") -> 0 | AE14: =COUNTIF(F30:F39,">=70") -> 2 | AG14: =COUNTIF(F30:F39,"<=40") -> 0
A15: 10. | B15: 10.7 | C15: 14.9 | D15: 7.3 | E15: 7.2 | F15: 76 | G15: 89 | H15: 7.8 | I15: 19.9 | J15: R | L15: . | M15: 1007.3 | N15: 9.1 | O15: 1 | R15: 1 | V15: 3
A16: Su | B16: =SUM(B6:B15) -> 89.8 | C16: =SUM(C6:C15) -> 142.5 | D16: 49.7 | E16: 39.3 | F16: XXX | G16: XXX | H16: =SUM(H6:H15) -> 46.8 | I16: =SUM(I6:I15) -> 21.1 | J16: XX | L16: =SUM(L6:L15) -> 21 | M16: =SUM(M6:M15) -> 10214.6 | N16: 53.8 | O16: 6 | P16: =COUNT(P6:P15) -> 0 | Q16: X | R16: =SUM(R6:R15) -> 4 | S16: =SUM(S6:S15) -> 0 | T16: 0 | U16: 0 | V16: XXX | AA16: ohne Sonne | AB16: Son. 0,1-0,9 | AC16: Son. >=10,0 | AE16: Sch. >=1 cm | AF16: Sch. >=3 cm | AG16: Sch. >=10 cm
A17: Mi | B17: =AVERAGE(B6:B15) -> 8.98 | C17: =AVERAGE(C6:C15) -> 14.25 | D17: 4.97 | E17: 3.93 | F17: XXX | G17: 79.4 | H17: 4.68 | I17: =I16/10 -> 2.11 | J17: XX | L17: =L16/10 -> 2.1 | M17: =AVERAGE(M6:M15) -> 1021.46 | N17: =AVERAGE(N6:N15) -> 5.38 | O17: 0.6 | P17: XXX | Q17: X | R17: XX | S17: XX | T17: XX | U17: XX | V17: =AVERAGE(V6:V15) -> 2.9 | AA17: =COUNTIF(L6:L15,".") -> 4 | AB17: =COUNTIF(L6:L15,"<1") -> 0 | AC17: =COUNTIF(L6:L15,">=10") -> 0 | AE17: =COUNTIF(P6:P15,">=1") -> 0 | AF17: =COUNTIF(P6:P15,">=3") -> 0 | AG17: =COUNTIF(P6:P15,">=10") -> 0
A18: 11. | B18: 9.1 | C18: 13.1 | D18: 7.4 | E18: 7.2 | F18: 95 | G18: 98 | H18: 8 | I18: 15.9 | J18: R | L18: . | M18: 1014 | N18: 8.8 | O18: 0 | R18: 1 | V18: 2 | AA18: =COUNTIF(L18:L27,".") -> 5 | AB18: =COUNTIF(L18:L27,"<1") -> 1 | AC18: =COUNTIF(L18:L27,">=10") -> 0 | AE18: =COUNTIF(P18:P27,">=1") -> 0 | AF18: =COUNTIF(P18:P27,">=3") -> 0 | AG18: =COUNTIF(P18:P27,">=10") -> 0
A19: 12. | B19: 10.4 | C19: 13.6 | D19: 8.1 | E19: 7.8 | F19: 92 | G19: 97 | H19: 7.5 | I19: 7.3 | J19: R | L19: . | M19: 1018 | N19: 10 | O19: 0 | R19: 1 | V19: 2 | AA19: =COUNTIF(L30:L39,".") -> 0 | AB19: =COUNTIF(L30:L39,"<1") -> 1 | AC19: =COUNTIF(L30:L39,">=10") -> 0 | AE19: =COUNTIF(P30:P39,">=1") -> 0 | AF19: =COUNTIF(P30:P39,">=3") -> 0 | AG19: =COUNTIF(P30:P39,">=10") -> 0
A20: 13. | B20: 8.6 | C20: 12.9 | D20: 3.5 | E20: 2.8 | F20: 68 | G20: 91 | H20: 4 | I20: . | L20: 2.5 | M20: 1020.3 | N20: 7.2 | O20: 1 | V20: 2
A21: 14. | B21: 8.9 | C21: 15.8 | D21: 2.7 | E21: 1.1 | F21: 63 | G21: 87 | H21: 5.3 | I21: . | L21: 6.1 | M21: 1020.1 | N21: 6.6 | O21: 1 | V21: 3 | AA21: Max TT | AB21: Max TxTx | AC21: Min TgTg | AE21: Max RR
A22: 15. | B22: 10.2 | C22: 13.3 | D22: 7.2 | E22: 5 | F22: 77 | G22: 86 | H22: 6.7 | I22: 5.1 | J22: R | L22: . | M22: 1010.7 | N22: 8 | O22: 0 | R22: 1 | V22: 3 | AA22: =MAX(B6:B15,B18:B27,B30:B39) -> 16.8 | AB22: =MAX(C6:C15,C18:C27,C30:C39) -> 23.6 | AC22: =MIN(E6:E15,E18:E27,E30:E39) -> -1.7 | AE22: =MAX(I6:I15,I18:I27,I30:I39) -> 19.9
A23: 16. | B23: 8.3 | C23: 10.2 | D23: 6.2 | E23: 3.9 | F23: 87 | G23: 94 | H23: 7 | I23: 2.2 | J23: R | L23: . | M23: 1011.9 | N23: 7.4 | O23: 1 | R23: 1 | V23: 3 | AA23: Min TT | AB23: Min TnTn | AC23: Min U14 | AE23: Max SS
A24: 17. | B24: 10.6 | C24: 15.6 | D24: 4.4 | E24: 2.2 | F24: 67 | G24: 85 | H24: 5.6 | I24: 2.9 | J24: R | L24: 2.3 | M24: 1011.9 | N24: 7.9 | O24: 1 | R24: 1 | V24: 5 | AA24: =MIN(B6:B15,B18:B27,B30:B39) -> 5.2 | AB24: =MIN(D6:D15,D18:D27,D30:D39) -> -0.2 | AC24: =MIN(F6:F15,F18:F27,F30:F39) -> 41 | AE24: =MAX(P6:P15,P18:P27,P30:P39) -> 0
A25: 18. | B25: 9.7 | C25: 11.8 | D25: 4.5 | E25: 2.8 | F25: 74 | G25: 85 | H25: 6.9 | I25: 0.4 | J25: R | L25: . | M25: 1016.9 | N25: 7.4 | O25: 1 | R25: 1 | V25: 5
A26: 19. | B26: 7.9 | C26: 12.7 | D26: 1.4 | E26: -0.6 | F26: 72 | G26: 87 | H26: 2.5 | I26: 0.1 | J26: R | L26: 3.8 | M26: 1018 | N26: 5.7 | O26: 0 | R26: 1 | V26: 3
A27: 20. | B27: 12.8 | C27: 17.3 | D27: 10.3 | E27: 9.4 | F27: 78 | G27: 89 | H27: 6.8 | I27: 2 | J27: R | L27: 0.3 | M27: 1015.3 | N27: 11.1 | O27: 1 | R27: 1 | V27: 3
A28: Su | B28: =SUM(B18:B27) -> 96.5 | C28: =SUM(C18:C27) -> 136.3 | D28: 55.7 | E28: 41.6 | F28: XXX | G28: XXX | H28: =SUM(H18:H27) -> 60.3 | I28: =SUM(I18:I27) -> 35.9 | J28: XX | L28: =SUM(L18:L27) -> 15 | M28: =SUM(M18:M27) -> 10157.1 | N28: 80.1 | O28: 6 | P28: =COUNT(P18:P27) -> 0 | Q28: X | R28: =SUM(R18:R27) -> 8 | S28: =SUM(S18:S27) -> 0 | T28: 0 | U28: 0 | V28: XXX
A29: Mi | B29: =AVERAGE(B18:B27) -> 9.65 | C29: =AVERAGE(C18:C27) -> 13.63 | D29: 5.57 | E29: 4.16 | F29: 77.3 | G29: 89.9 | H29: 6.03 | I29: =I28/10 -> 3.59 | J29: XX | L29: =L28/10 -> 1.5 | M29: =AVERAGE(M18:M27) -> 1015.71 | N29: =AVERAGE(N18:N27) -> 8.01 | O29: 0.6 | P29: XXX | Q29: X | R29: XX | S29: XX | T29: XX | U29: XX | V29: =AVERAGE(V18:V27) -> 3.1
A30: 21. | B30: 14.9 | C30: 19.6 | D30: 11 | E30: 8.9 | F30: 64 | G30: 82 | H30: 6.6 | I30: . | L30: 2.8 | M30: 1016.1 | N30: 11.7 | O30: 1 | V30: 3
A31: 22. | B31: 14.3 | C31: 21.1 | D31: 9.2 | E31: 7.8 | F31: 58 | G31: 85 | H31: 3.2 | I31: . | L31: 2.9 | M31: 1014.3 | N31: 11.6 | O31: 1 | V31: 3
A32: 23. | B32: 15.4 | C32: 20.4 | D32: 12.8 | E32: 10.6 | F32: 70 | G32: 84 | H32: 5.4 | I32: 0.6 | J32: R | L32: 1.1 | M32: 1010.6 | N32: 12.8 | O32: 1 | R32: 1 | V32: 3
A33: 24. | B33: 14.7 | C33: 19.6 | D33: 8.2 | E33: 6.6 | F33: 62 | G33: 78 | H33: 3.7 | I33: . | L33: 1.8 | M33: 1017.3 | N33: 11 | O33: 1 | V33: 4
A34: 25. | B34: 11.6 | C34: 17.7 | D34: 6.4 | E34: 5 | F34: 76 | G34: 90 | H34: 5.8 | I34: . | L34: 1.5 | M34: 1018.1 | N34: 9.9 | O34: 1 | V34: 3
A35: 26. | B35: 16.5 | C35: 23.6 | D35: 12.1 | E35: 10 | F35: 55 | G35: 79 | H35: 5.8 | I35: 0.1 | J35: R | L35: 1.3 | M35: 1014.3 | N35: 12.5 | O35: 1 | R35: 1 | V35: 5
A36: 27. | B36: 16.8 | C36: 21.2 | D36: 11.1 | E36: 8.6 | F36: 42 | G36: 69 | H36: 6.3 | I36: 1.6 | J36: R | L36: 1.8 | M36: 1008.8 | N36: 10.8 | O36: 3 | R36: 1 | T36: 1 | V36: 6
A37: 28. | B37: 16.8 | C37: 22.2 | D37: 12.3 | E37: 13 | F37: 41 | G37: 63 | H37: 6.3 | I37: . | L37: 0.5 | M37: 1004.7 | N37: 9.4 | O37: 3 | T37: 1 | V37: 6
A38: 29. | B38: 13.2 | C38: 16.5 | D38: 8.9 | E38: 6.1 | F38: 44 | G38: 61 | H38: 5.3 | I38: . | L38: 1.7 | M38: 1012.5 | N38: 5.9 | O38: 2 | V38: 5
A39: 30. | B39: 8.9 | C39: 12.4 | D39: 3.6 | E39: 1.7 | F39: 56 | G39: 71 | H39: 4 | I39: . | L39: 1.3 | M39: 1022.2 | N39: 4 | O39: 2 | V39: 5
A40: 31. | B40: 5 | C40: 12.6 | D40: 0.7 | E40: -1.1 | F40: 51 | G40: 80 | H40: 1.3 | I40: . | L40: 2.9 | M40: 1026.5 | N40: 1.6 | O40: 1 | V40: 4
A41: Su | B41: =SUM(B30:B40) -> 148.1 | C41: =SUM(C30:C40) -> 206.9 | D41: 96.3 | E41: 77.2 | F41: XXX | G41: =SUM(G30:G40) -> 842 | H41: =SUM(H30:H40) -> 53.7 | I41: =SUM(I30:I40) -> 2.3 | J41: XX | L41: =SUM(L30:L40) -> 19.6 | M41: =SUM(M30:M40) -> 11165.4 | N41: 101.2 | O41: =SUM(O30:O40) -> 17 | P41: =COUNT(P30:P40) -> 0 | Q41: X | R41: =SUM(R30:R40) -> 3 | S41: =SUM(S30:S40) -> 0 | T41: 2 | U41: 0 | V41: XXX
A42: Mi | B42: =AVERAGE(B30:B40) -> 13.46363636 | C42: =AVERAGE(C30:C40) -> 18.80909091 | D42: 8.754545455 | E42: 7.018181818 | F42: XXX | G42: =AVERAGE(G30:G40) -> 76.54545455 | H42: =AVERAGE(H30:H40) -> 4.881818182 | I42: XXXXX | J42: XX | L42: XXXX | M42: =AVERAGE(M30:M40) -> 1015.036364 | N42: =AVERAGE(N30:N40) -> 9.2 | O42: 1.545454545 | P42: XXX | Q42: X | R42: XX | S42: XX | T42: XX | U42: XX | V42: =AVERAGE(V30:V40) -> 4.272727273
A43: MSu | B43: =SUM(B16+B28+B41) -> 334.4 | C43: =SUM(C16+C28+C41) -> 485.7 | D43: =SUM(D16+D28+D41) -> 201.7 | E43: =SUM(E16+E28+E41) -> 158.1 | F43: XXX | G43: XXX, | H43: =SUM(H16+H28+H41) -> 160.8 | I43: =SUM(I16+I28+I41) -> 59.3 | J43: XX | L43: =SUM(L16+L28+L41) -> 55.6 | M43: =SUM(M16+M28+M41) -> 31537.1 | N43: =SUM(N16+N28+N41) -> 235.1 | O43: XXX | P43: =SUM(P16+P28+P41) -> 0 | Q43: X | R43: =SUM(R16+R28+R41) -> 15 | S43: =SUM(S16+S28+S41) -> 0 | T43: =SUM(T16+T28+T41) -> 2 | U43: =SUM(U16+U28+U41) -> 0 | V43: XXX
A44: MMi | B44: =AVERAGE(B6:B15,B18:B27,B30:B40) -> 10.78709677 | C44: =AVERAGE(C6:C15,C18:C27,C30:C40) -> 15.66774194 | D44: 6.506451613 | E44: 5.1 | F44: XXX | G44: =AVERAGE(G6:G15,G18:G27,G30:G40) -> 81.77419355 | H44: =AVERAGE(H6:H15,H18:H27,H30:H40) -> 5.187096774 | I44: XXXXX | J44: XX | L44: XXXX | M44: =AVERAGE(M6:M15,M18:M27,M30:M40) -> 1017.325806 | N44: =AVERAGE(N6:N15,N18:N27,N30:N40) -> 7.583870968 | O44: =AVERAGE(O6:O15,O18:O27,O30:O40) -> 0.935483871 | P44: XXX | Q44: X | R44: XX | S44: XX | T44: XX | U44: XX | V44: =AVERAGE(V17,V29,V42) -> 3.424242424
B46: Norm | C46: % v N.- | D46: Abw. | E46: Zahl der Tage | L46: Niederschlag mm | P46: Sonnensch.-dauer Std
B47: wert | C47: wert | D47: K | E47: Max.d.Lufttemp.°C | L47: >/= 0,1 | O47: =SUM(AE7:AE9) -> 15 | P47: ohne Sonne | V47: 9
A48: TTT | B48: 9.4 | C48: XXXX | D48: =SUM(B44-B48) -> 1.387096774 | E48: Tropentag/Hitzetag | I48: =SUM(AA7:AA9) -> 0 | L48: >/= 1,0 | O48: =SUM(AF7:AF9) -> 8 | P48: 0,1 bis 0,9 | V48: 2
A49: RRR | B49: 50 | C49: =SUM(I43*100/B49) -> 118.6 | D49: XXXX | E49: Sommertag | I49: =SUM(AB7:AB9) -> 0 | L49: >/= 3,0 | O49: =SUM(AG7:AG9) -> 4 | P49: >/= 10,0 | V49: =SUM(AC17:AC19) -> 0
A50: sss | B50: 122 | C50: =SUM(L43*100/B50) -> 45.57377049 | D50: XXXX | E50: Eistag | I50: =SUM(AC7:AC9) -> 0 | L50: >/=10,0 | O50: =SUM(AH7:AH9) -> 2 | P50: Schneedecke cm
A51: astr. | D51: XXXX | E51: Min.d.Lufttemp.°C | L51: >/= 20,0 | O51: 0 | P51: >/= 1 | V51: =SUM(AE17:AE19) -> 0
A52: mgl. | B52: 341 | C52: =SUM(L43*100/B52) -> 16.30498534 | D52: XXXX | E52: Frosttag | I52: =SUM(AA12:AA14) -> 1 | L52: Rel. Luftfeuchte 14 Uhr | P52: >/= 3 | V52: =SUM(AF17:AF19) -> 0
A53: sss | D53: XXXX | E53: starker Eistag | I53: =SUM(AB12:AB14) -> 0 | L53: >/=70% | O53: =SUM(AE12:AE14) -> 13 | P53: >/= 10 | V53: =SUM(AG17:AG19) -> 0
L54: </=40% | O54: =SUM(AG12:AG14) -> 0

Sheet Sichtst.
E1: Sichtweitenstatistik
B5: Wetterstation: Köttewitz | F5: Monat: | G5: Oktober | K5: Jahr: | L5: 2013
A7: Dat. | B7: Nebeldauer | C7: Nebel | D7: Dunst | E7: Sicht | F7: Sicht | G7: Sicht | H7: Sicht
B8: in St. u. Min. | E8: mittel | F8: normal | G8: gut | H8: sehr gut
A9: 01. | B9: 01:40:00 | C9: 1 | D9: 1 | E9: 1 | F9: 1 | G9: - | H9: - | N9: =IF(ISNUMBER(B9),B9*24," ") -> 1.666666667 | O9: =IF(ISNUMBER(N9),IF(N9<1,1," ")," ") ->  | P9: =IF(ISNUMBER(N9),IF(N9<8,2," ")," ") -> 2 | Q9: =IF(ISNUMBER(N9),IF(N9<24,3," ")," ") -> 3 | R9: =MIN(O9:Q9) -> 2
A10: 02. | B10: - | C10: =IF(R10=1,1,"-") -> - | D10: - | E10: - | F10: 1 | G10: - | H10: - | R10: 0
A11: 03. | B11: - | C11: - | D11: - | E11: - | F11: 1 | G11: - | H11: - | R11: 0
A12: 04. | B12: - | C12: - | D12: - | E12: - | F12: 1 | G12: - | H12: - | R12: 0
A13: 05. | B13: - | C13: - | D13: - | E13: - | F13: 1 | G13: - | H13: - | R13: 0
A14: 06. | B14: 03:00:00 | C14: 1 | D14: 1 | E14: 1 | F14: 1 | G14: - | H14: - | N14: 3 | P14: 2 | Q14: 3 | R14: 2
A15: 07. | B15: - | C15: - | D15: 1 | E15: 1 | F15: 1 | G15: - | H15: - | R15: 0
A16: 08. | B16: - | C16: - | D16: - | E16: 1 | F16: 1 | G16: - | H16: - | R16: 0
A17: 09. | B17: - | C17: - | D17: - | E17: 1 | F17: 1 | G17: - | H17: - | R17: 0
A18: 10. | B18: - | C18: - | D18: 1 | E18: 1 | F18: 1 | G18: - | H18: - | R18: 0
A19: 11. | B19: - | C19: - | D19: 1 | E19: - | F19: - | G19: - | H19: - | R19: 0
A20: 12. | B20: - | C20: - | D20: 1 | E20: 1 | F20: 1 | G20: - | H20: - | R20: 0
A21: 13. | B21: - | C21: - | D21: - | E21: 1 | F21: 1 | G21: - | H21: - | R21: 0
A22: 14. | B22: - | C22: - | D22: - | E22: - | F22: 1 | G22: - | H22: - | R22: 0
A23: 15. | B23: - | C23: - | D23: - | E23: - | F23: 1 | G23: - | H23: - | R23: 0
A24: 16. | B24: - | C24: - | D24: 1 | E24: 1 | F24: 1 | G24: - | H24: - | R24: 0
A25: 17. | B25: - | C25: - | D25: - | E25: 1 | F25: 1 | G25: 1 | H25: - | R25: 0
A26: 18. | B26: - | C26: - | D26: - | E26: 1 | F26: 1 | G26: - | H26: - | R26: 0
A27: 19. | B27: - | C27: - | D27: - | E27: - | F27: 1 | G27: - | H27: - | R27: 0
A28: 20. | B28: - | C28: - | D28: 1 | E28: 1 | F28: 1 | G28: - | H28: - | R28: 0
A29: 21. | B29: - | C29: - | D29: - | E29: 1 | F29: 1 | G29: 1 | H29: - | R29: 0
A30: 22. | B30: - | C30: - | D30: - | E30: - | F30: 1 | G30: 1 | H30: - | R30: 0
A31: 23. | B31: - | C31: - | D31: - | E31: - | F31: 1 | G31: - | H31: - | R31: 0
A32: 24. | B32: - | C32: - | D32: - | E32: - | F32: 1 | G32: 1 | H32: - | R32: 0
A33: 25. | B33: - | C33: - | D33: - | E33: - | F33: 1 | G33: - | H33: - | R33: 0
A34: 26. | B34: - | C34: - | D34: - | E34: - | F34: 1 | G34: 1 | H34: - | R34: 0
A35: 27. | B35: - | C35: - | D35: - | E35: - | F35: 1 | G35: 1 | H35: 1 | R35: 0
A36: 28. | B36: - | C36: - | D36: - | E36: - | F36: 1 | G36: 1 | H36: 1 | R36: 0
A37: 29. | B37: - | C37: - | D37: - | E37: - | F37: 1 | G37: 1 | H37: 1 | R37: 0
A38: 30. | B38: - | C38: - | D38: - | E38: - | F38: 1 | G38: 1 | H38: - | R38: 0
A39: 31. | B39: - | C39: - | D39: - | E39: - | F39: 1 | G39: 1 | H39: - | R39: 0
A40: Su. | B40: =SUM(B9:B39) -> 04:40:00 | C40: =SUM(C9:C39) -> 2 | D40: =SUM(D9:D39) -> 8 | E40: =SUM(E9:E38) -> 13 | F40: 29 | G40: 9 | H40: 3
B42: Anzahl der Nebeltage : | E42: =SUM(C40) -> 2
B43: Anzahl der Tage Sicht >= 50 km : | E43: =SUM(G40) -> 9

Sheet Monatsdiagramm
A1: Klimadiagramm | C1: Wetterstation Köttewitz | I1: (213 m ü. NHN)
A3: Oktober 2013
C5: aktuell | D5: langj. Mittel | E5: Abw. vom lj. Mittel
B6: höchste Temperatur (°C): | C6: =MAX('Daten für Diagr.'!C2:C29) -> 23.6 | D6: am | E6: 2013-10-26
B7: mittlere Temperatur (°C): | C7: ='Daten für Diagr.'!B33 -> 10.78709677 | D7: =Kurztabelle!B48 -> 9.4 | E7: =C7-D7 -> 1.387096774 | F7: K
B8: tiefste Temperatur (°C): | C8: =MIN('Daten für Diagr.'!D2:D32) -> -0.2 | D8: am | E8: 2013-10-01
B9: Niederschlagshöhe (mm): | C9: =Kurztabelle!I43 -> 59.3 | D9: =Kurztabelle!B49 -> 50 | E9: =100/D9*C9 -> 118.6 | F9: %
B10: Sonnenscheindauer (Std.)*: | C10: =Kurztabelle!L43 -> 55.6 | D10: =Kurztabelle!B50 -> 122 | E10: =100/D10*C10 -> 45.57377049 | F10: %
A66: *Die Wetterstation kann, durch geographische Hindernisse, nicht die maximal mögliche Sonnenscheindauer aufzeichnen. Es gilt ein Übergangsprozentsatz von: Nov - Feb 50 %; Mär & Okt 65 %; Apr & Sep 80 %; Mai - August 90 %.
A67: Diese Werte entsprechend annähernd 100 % (Normalwert Köttewitz). Nach 10 Jahren erfolgt die Umstellung des Prozentsatzes nach der örtlichen Aufzeichnung.

Sheet Daten für Diagr.
B1: Td | C1: Tmax | D1: Tmin | E1: RR | F1: Schnee | G1: Sonne | H1: Luftdr. | I1: MWT | J1: GWL | K1: Name | L1: Sonstiges
A2: 2013-10-01 | B2: 5.2 | C2: 13.8 | D2: -0.2 | G2: 2.8 | H2: 1016.7 | I2: 11.85 | L2: Von 08:40 Uhr - 09:19 Uhr starker Nebel. Von 08:20 Uhr - 08:39 Uhr; 09:20 Uhr - 09:29 Uhr mäßiger Nebel. Von 08:00 Uhr - 08:19 Uhr; 09:30 Uhr - 09:39 Uhr leichter Nebel. Von 07:30 Uhr - 07:59 Uhr; 09:40 Uhr - 09:49 Uhr starker Dunst. Von 07:10 Uhr- 07:29 Uhr; 09:50 Uhr - 09:59 Uhr mäßiger Dunst. Von 07:00 Uhr - 07:09 Uhr; 10:00 Uhr - 10:09 Uhr leichter Dunst.
A3: 2013-10-02 | B3: 5.4 | C3: 13.6 | D3: 0.1 | G3: 3.8 | H3: 1025 | I3: 11.7
A4: 2013-10-03 | B4: 5.9 | C4: 11.9 | D4: 0.2 | G4: 4.9 | H4: 1028.2 | I4: 11.55 | J4: SEa
A5: 2013-10-04 | B5: 8.2 | C5: 13.6 | D5: 4.1 | G5: 4.3 | H5: 1024.3 | I5: 11.35
A6: 2013-10-05 | B6: 8.6 | C6: 13.8 | D6: 5.4 | G6: 1.6 | H6: 1019 | I6: 11.2 | L6: Beginn des Blattfalls der Birke.
A7: 2013-10-06 | B7: 9.4 | C7: 12 | D7: 5.8 | E7: 0.4 | H7: 1023.9 | I7: 11.05 | J7: BM | K7: H Liane | L7: Von 21:20 Uhr - 23:29 Uhr starker Nebel. Von 21:10 Uhr - 21:19 Uhr; 23:30 Uhr - 23:39 Uhr mäßiger Nebel. Von 21:00 Uhr - 21:09 Uhr; 23:40 Uhr - 23:49 Uhr leichter Nebel. Von 20:50 Uhr - 20:59 Uhr; 23:50 Uhr - 23:59 Uhr starker Dunst. Von 20:40 Uhr - 20:49 Uhr mäßiger Dunst. Von 20:30 Uhr - 20:39 Uhr leichter Dunst.
A8: 2013-10-07 | B8: 12.2 | C8: 15.7 | D8: 10.2 | E8: 0.1 | H8: 1027.5 | I8: 10.85 | L8: Von 00:00 Uhr - 08:09 Uhr starker Dunst. Von 08:10 Uhr - 08:49 Uhr mäßiger Dunst. Von 08:50 Uhr - 09:29 Uhr leichter Dunst.
A9: 2013-10-08 | B9: 12.6 | C9: 18.1 | D9: 8.5 | G9: 3.6 | H9: 1024.7 | I9: 10.7 | L9: Beginn des allgemeinen Blattfalls.
A10: 2013-10-09 | B10: 11.6 | C10: 15.1 | D10: 8.3 | E10: 0.7 | H10: 1018 | I10: 10.55
A11: 2013-10-10 | B11: 10.7 | C11: 14.9 | D11: 7.3 | E11: 19.9 | H11: 1007.3 | I11: 10.4 | J11: TM | K11: T Xenon | L11: Von 19:30 Uhr - 23:59 Uhr mäßiger Dunst. Von 19:20 Uhr - 19:29 Uhr leichter Dunst.
A12: 2013-10-11 | B12: 9.1 | C12: 13.1 | D12: 7.4 | E12: 15.9 | H12: 1014 | I12: 10.2 | L12: Von 17:20 Uhr - 23:59 Uhr leichter Dunst. Von 00:00 Uhr - 17:19 Uhr mäßiger Dunst.
A13: 2013-10-12 | B13: 10.4 | C13: 13.6 | D13: 8.1 | E13: 7.3 | H13: 1018 | I13: 10.05 | L13: Von 00:00 Uhr - 01:49 Uhr; 17:10 Uhr - 17:49 Uhr leichter Dunst. Von 17:10 Uhr - 17:49 Uhr Sichteinschränkung durch Niederschlag.
A14: 2013-10-13 | B14: 8.6 | C14: 12.9 | D14: 3.5 | G14: 2.5 | H14: 1020.3 | I14: 9.9 | J14: Ws
A15: 2013-10-14 | B15: 8.9 | C15: 15.8 | D15: 2.7 | G15: 6.1 | H15: 1020.1 | I15: 9.7 | L15: Beginn des phänologischen Spätherbst.
A16: 2013-10-15 | B16: 10.2 | C16: 13.3 | D16: 7.2 | E16: 5.1 | H16: 1010.7 | I16: 9.55
A17: 2013-10-16 | B17: 8.3 | C17: 10.2 | D17: 6.2 | E17: 2.2 | H17: 1011.9 | I17: 9.4 | J17: NWz | K17: T Yannick | L17: Von 02:30 Uhr - 09:29 Uhr; 10:20 Uhr - 11:29 Uhr leichter Dunst.
A18: 2013-10-17 | B18: 10.6 | C18: 15.6 | D18: 4.4 | G18: 2.3 | H18: 1011.9 | I18: 9.25 | J18: U
A19: 2013-10-18 | B19: 9.7 | C19: 11.8 | D19: 4.5 | E19: 0.4 | H19: 1016.9 | I19: 9.1
A20: 2013-10-19 | B20: 7.9 | C20: 12.7 | D20: 1.4 | E20: 0.1 | G20: 3.8 | H20: 1018 | I20: 8.9 | J20: SEa | K20: H Nastassja
A21: 2013-10-20 | B21: 12.8 | C21: 17.3 | D21: 10.3 | E21: 2 | G21: 0.3 | H21: 1015.3 | I21: 8.75 | J21: SWz | K21: T Jannick 1 | L21: Von 16:50 Uhr - 19:19 Uhr leichter Dunst.
A22: 2013-10-21 | B22: 14.9 | C22: 19.6 | D22: 11 | G22: 2.8 | H22: 1016.1 | I22: 8.6 | J22: SWa | K22: T Zenith
A23: 2013-10-22 | B23: 14.3 | C23: 21.1 | D23: 9.2 | G23: 2.9 | H23: 1014.3 | I23: 8.4
A24: 2013-10-23 | B24: 15.4 | C24: 20.4 | D24: 12.8 | E24: 0.6 | G24: 1.1 | H24: 1010.6 | I24: 8.25 | J24: SWz
A25: 2013-10-24 | B25: 14.7 | C25: 19.6 | D25: 8.2 | G25: 1.8 | H25: 1017.3 | I25: 8.1
A26: 2013-10-25 | B26: 11.6 | C26: 17.7 | D26: 6.4 | G26: 1.5 | H26: 1018.1 | I26: 7.95 | J26: Wz | K26: T Albrecht
A27: 2013-10-26 | B27: 16.5 | C27: 23.6 | D27: 12.1 | E27: 0.1 | G27: 1.3 | H27: 1014.3 | I27: 7.75 | J27: SWz | L27: Gartenblumen blühen das 2. mal. Leicht schwül.
A28: 2013-10-27 | B28: 16.8 | C28: 21.2 | D28: 11.1 | E28: 1.6 | G28: 1.8 | H28: 1008.8 | I28: 7.6
A29: 2013-10-28 | B29: 16.8 | C29: 22.2 | D29: 12.3 | G29: 0.5 | H29: 1004.7 | I29: 7.45 | K29: Orkan "Christian"
A30: 2013-10-29 | B30: 13.2 | C30: 16.5 | D30: 8.9 | G30: 1.7 | H30: 1012.5 | I30: 7.3 | J30: Wa | K30: H Petra | L30: Die Heuschrecken sind das letzte mal zu hören.
A31: 2013-10-30 | B31: 8.9 | C31: 12.4 | D31: 3.6 | G31: 1.3 | H31: 1022.2 | I31: 7.15
A32: 2013-10-31 | B32: 5 | C32: 12.6 | D32: 0.7 | G32: 2.9 | H32: 1026.5 | I32: 7
A33: Durchschnitt | B33: =AVERAGE(B2:B32) -> 10.78709677 | C33: =AVERAGE(C2:C32) -> 15.66774194 | D33: =AVERAGE(D2:D32) -> 6.506451613 | H33: =AVERAGE(H2:H32) -> 1017.325806 | I33: =AVERAGE(I2:I32) -> 9.40483871
A34: Mittel | B34: 9.4 | E34: 50 | F34: - | G34: 122 | H34: 1017.3
A90: 1
A91: 2
A92: 3
A93: 4
A94: 5
A95: 6
A96: 7
A97: 8
A98: 9
A99: 10
A100: 11
A101: 12
A102: 13
A103: 14
A104: 15
A105: 16
A106: 17
A107: 18
A108: 19
A109: 20
A110: 21
A111: 22
A112: 23
A113: 24
A114: 25
A115: 26
A116: 27
A117: 28
A118: 29
A119: 30
A120: 31

Sheet Erdbodentem.
E1: Erdbodentemperatur
B5: Wetterstation: Köttewitz | F5: Monat: | G5: Oktober | K5: Jahr: | L5: 2013
A7: Dat. | B7: 7 Uhr | C7: 8 Uhr | D7: 12 Uh | E7: 13 Uhr | F7: 20 Uhr | H7: NN
A9: 01. | B9: 3,6 °C/6,0 °C | D9: 7,5 °C/6,7 °C | F9: 6,9 °C/7,3 °C | H9: n
A10: 02. | B10: 3,6 °C/6,0 °C | D10: 7,2 °C/6,3 °C | F10: 6,5 °C/7,0 °C | H10: h
A11: 03. | B11: 3,0 °C/5,6 °C | D11: - | F11: - | H11: h
A12: 04. | B12: 3,5 °C/5,1 °C | D12: - | F12: - | H12: n
A13: 05. | B13: 5,0 °C/5,6 °C | D13: 8,5 °C/7,7 °C | F13: 7,2 °C/7,4 °C | H13: n
A14: 06. | B14: 6,7 °C/7,0 °C | D14: 8,9 °C/8,2 °C | F14: 10,2 °C/9,6 °C | H14: t
A15: 07. | B15: 10,5 °C/10,4 °C | D15: 13,1 °C/12,4 °C | F15: 12,2 °C/12,4 °C | H15: t
A16: 08. | B16: 10,0 °C710,6 °C | D16: 12,5 °C/10,8 °C | F16: - | H16: n
A17: 09. | B17: 9,2 °C/9,9 °C | D17: 11,5 °C/10,5 °C | F17: 11,5 °C/11,5 °C | H17: t
A18: 10. | B18: 10,5 °C/10,4 °C | D18: 12,0 °C/11,0 °C | F18: 10,3 °C/9,9 °C | H18: t
A19: 11. | B19: 8,5 °C/9,0 °C | D19: 10,1 °C/10,1 °C | F19: 10,6 °C/10,8 °C | H19: t
A20: 12. | B20: 9,8 °C/10,0 °C | D20: - | F20: 11,8 °C/11,8 °C | H20: t
A21: 13. | B21: 9,8 °C/10,0 °C | D21: 11,5 °C/10,5 °C | F21: - | H21: n
A22: 14. | B22: 5,5 °C/7,8 °C | D22: 12,5 °C/10,8 °C | F22: - | H22: n
A23: 15. | B23: 8,9 °C/9,5 °C | D23: 11,9 °C/10,5 °C | F23: 10,5 °C/10,0 °C | H23: n
A24: 16. | B24: 8,5 °C/9,0 °C | D24: 10,1 °C/9,5 °C | F24: 10,0 °C/9,0 °C | H24: t
A25: 17. | B25: 7,0 °C/8,0 °C | D25: 10,3 °C/8,7 °C | F25: 10,5 °C/10,4 °C | H25: n
A26: 18. | B26: - | D26: 10,8 °C/10,3 °C | F26: 10,0 °C/10,4 °C | H26: n
A27: 19. | B27: - | D27: 8,5 °C/8,1 °C | F27: - | H27: n
A28: 20. | B28: 10,2 °C/10,0 °C | D28: 13,2 °C/10,3 °C | F28: 12,0 °C/11,1 °C | H28: t
A29: 21. | B29: - | D29: 13,5 °C/11,0 °C/11,3 °C | F29: - | H29: t
A30: 22. | B30: 9,2 °C/10,4 °C/- | D30: 13,6 °C/11,0 °C/11,6 °C | F30: - | H30: n
A31: 23. | B31: 11,0 °C/11,2 °C/- | D31: 14,2 °C/13,8 °C/11,7 °C | F31: - | H31: n
A32: 24. | B32: 11,0 °C/11,7 °C/- | D32: 13,8 °C/11,8 °C/11,9 °C | F32: - | H32: n
A33: 25. | B33: 8,0 °C/10,1 °C/- | D33: 13,6 °C/11,0 °C/12,0 °C | F33: 11,9 °C/11,9 °C/- | H33: n
A34: 26. | B34: 11,3 °C/11,5 °C/- | D34: 13,8 °C/12,1 °C/12,0 °C | F34: 13,8 °C/13,2 °C/- | H34: n
A35: 27. | B35: 12,8 °C/12,5 °C/- | D35: 15,0 °C/12,8 °C/12,4 °C | F35: 13,0 °C/13,0 °C/- | H35: n
A36: 28. | B36: 11,0 °C/11,6 °C/- | D36: 13,5 °C/11,0 °C/11,5 °C | F36: 12,4 °C/13,2 °C/- | H36: n
A37: 29. | B37: 10,9 °C/12,0 °C/- | D37: 13,0 °C/12,0 °C/12,5 °C | F37: - | H37: n
A38: 30. | B38: 7,8 °C/9,6 °C/- | D38: 11,0 °C/9,8 °C/12,0 °C | F38: - | H38: n
A39: 31. | B39: 3,8 °C/5,6 °C/11,4 °C | D39: 7,8 °C/5,6 °C/11,2 °C | F39: 5,2 °C/7,1 °C/9,4 °C | H39: h
B41: Temperatur - 10 cm/Temperatur - 20 cm/Temperatur -50 cm
